[Event "7th Paul Keres Memorial Festival 2026 Rapid"]
[Site "ESTONIA Resort Hotel & Spa conference center, EE"]
[Date "2026.08.02"]
[Round "2"]
[White "Lazars, Krisjanis"]
[Black "Kazakouski, Valery"]
[Result "0-1"]
[Board "6"]
[TimeControl "12+3"]
[WhiteFideId "11635452"]
[BlackFideId "13507443"]
[WhiteElo "2107"]
[BlackElo "2528"]
[WhiteTitle "CM"]
[BlackTitle "GM"]
[WhiteClock "0:00:48"]
[BlackClock "0:02:54"]
[Variant "Standard"]
[EndDate "2026.08.02"]
[EndTime "08:36:12"]

1. e4 {[%clk 0:12:05]}  c5 {[%clk 0:12:04]} 2. Nf3 {[%clk 0:12:07]}  g6 {[%clk 0:12:06]} 3. d4 {[%clk 0:12:09]}  cxd4 {[%clk 0:12:07]}
4. Qxd4 {[%clk 0:12:08]}  Nf6 {[%clk 0:12:08]} 5. Nc3 {[%clk 0:12:09]}  Nc6 {[%clk 0:12:07]} 6. Qd1 {[%clk 0:12:11]}  Bg7 {[%clk 0:12:04]}
7. Be3 {[%clk 0:12:02]}  d6 {[%clk 0:12:01]} 8. Be2 {[%clk 0:11:55]}  O-O {[%clk 0:11:53]} 9. O-O {[%clk 0:11:52]}  b6 {[%clk 0:11:31]}
10. Nd4 {[%clk 0:11:13]}  Bb7 {[%clk 0:11:27]} 11. Nxc6 {[%clk 0:10:40]}  Bxc6 {[%clk 0:11:27]} 12. Bf3 {[%clk 0:10:05]}  Qc7 {[%clk 0:09:37]}
13. Rc1 {[%clk 0:09:15]}  b5 {[%clk 0:09:23]} 14. Bd4 {[%clk 0:08:48]}  e5 {[%clk 0:08:30]} 15. Be3 {[%clk 0:08:46]}  b4 {[%clk 0:08:32]}
16. Nd5 {[%clk 0:08:37]}  Bxd5 {[%clk 0:08:33]} 17. exd5 {[%clk 0:08:39]}  e4 {[%clk 0:08:35]} 18. Be2 {[%clk 0:08:39]}  Qa5 {[%clk 0:07:59]}
19. Bc4 {[%clk 0:08:37]}  Rac8 {[%clk 0:08:01]} 20. Bb3 {[%clk 0:08:32]}  Nd7 {[%clk 0:08:02]} 21. Bd4 {[%clk 0:07:51]}  Bxd4 {[%clk 0:07:55]}
22. Qxd4 {[%clk 0:07:53]}  Rfe8 {[%clk 0:07:57]} 23. c4 {[%clk 0:07:19]}  bxc3 {[%clk 0:07:41]} 24. Rxc3 {[%clk 0:07:07]}  Rxc3 {[%clk 0:07:42]}
25. bxc3 {[%clk 0:06:21]}  Nc5 {[%clk 0:07:39]} 26. h4 {[%clk 0:06:15]}  Qd8 {[%clk 0:07:39]} 27. h5 {[%clk 0:06:09]}  Qh4 {[%clk 0:07:07]}
28. hxg6 {[%clk 0:06:08]}  hxg6 {[%clk 0:07:09]} 29. Re1 {[%clk 0:04:58]}  Re5 {[%clk 0:07:04]} 30. Re3 {[%clk 0:04:59]}  Qh6 {[%clk 0:06:13]}
31. Bd1 {[%clk 0:03:42]}  Qg5 {[%clk 0:05:54]} 32. c4 {[%clk 0:03:43]}  Re7 {[%clk 0:04:06]} 33. Rh3 {[%clk 0:03:19]}  Qe5 {[%clk 0:03:58]}
34. Qxe5 {[%clk 0:03:21]}  Rxe5 {[%clk 0:03:58]} 35. Ra3 {[%clk 0:03:18]}  Re7 {[%clk 0:04:00]} 36. Ba4 {[%clk 0:02:58]}  Kg7 {[%clk 0:03:57]}
37. Kf1 {[%clk 0:02:57]}  Kf6 {[%clk 0:03:52]} 38. Ke2 {[%clk 0:02:51]}  Ke5 {[%clk 0:03:45]} 39. Ke3 {[%clk 0:02:42]}  f5 {[%clk 0:03:46]}
40. g3 {[%clk 0:02:21]}  g5 {[%clk 0:03:48]} 41. f4+ {[%clk 0:02:23]}  exf3 {[%clk 0:03:45]} 42. Kxf3 {[%clk 0:02:19]}  g4+ {[%clk 0:03:43]}
43. Ke3 {[%clk 0:02:20]}  Ne4 {[%clk 0:03:36]} 44. Ke2 {[%clk 0:01:50]}  Rh7 {[%clk 0:03:35]} 45. Bc2 {[%clk 0:01:19]}  Rh2+ {[%clk 0:03:32]}
46. Kd1 {[%clk 0:01:22]}  Kd4 {[%clk 0:03:01]} 47. Bxe4 {[%clk 0:01:06]}  fxe4 {[%clk 0:02:59]} 48. Rxa7 {[%clk 0:01:06]}  Kxc4 {[%clk 0:02:56]}
49. Ra5 {[%clk 0:00:53]}  Rg2 {[%clk 0:02:52]} 50. Ke1 {[%clk 0:00:48]}  Rxg3 {[%clk 0:02:53]} 51. Kf2 {[%clk 0:00:51]}  Rf3+ {[%clk 0:02:53]}
52. Ke2 {[%clk 0:00:54]}  g3 {[%clk 0:02:54]} 53. Ra8 {[%clk 0:00:47]}  Kxd5 {[%clk 0:02:50]} 54. Rg8 {[%clk 0:00:48]}  Ra3 {[%clk 0:02:50]}
55. Rg6 {[%clk 0:00:45]}  Rxa2+ {[%clk 0:02:51]} 56. Ke3 {[%clk 0:00:47]}  Ra3+ {[%clk 0:02:53]} 57. Ke2 {[%clk 0:00:49]}  g2 {[%clk 0:02:53]}
58. Kd2 {[%clk 0:00:48]}  Ra1 {[%clk 0:02:54]} 0-1

[Event "7th Paul Keres Memorial Festival 2026 Rapid"]
[Site "ESTONIA Resort Hotel & Spa conference center, EE"]
[Date "2026.08.02"]
[Round "2"]
[White "Harikrishnan.A.Ra"]
[Black "Melderis, Uldis"]
[Result "1-0"]
[Board "7"]
[TimeControl "12+3"]
[WhiteFideId "5081483"]
[BlackFideId "11600845"]
[WhiteElo "2404"]
[BlackElo "1955"]
[WhiteTitle "GM"]
[WhiteClock "0:05:23"]
[BlackClock "0:00:30"]
[Variant "Standard"]
[EndDate "2026.08.02"]
[EndTime "08:33:37"]

1. d4 {[%clk 0:12:04]}  d5 {[%clk 0:12:02]} 2. Bf4 {[%clk 0:12:04]}  e6 {[%clk 0:11:53]} 3. e3 {[%clk 0:12:03]}  c5 {[%clk 0:11:54]}
4. c3 {[%clk 0:12:05]}  Qb6 {[%clk 0:11:56]} 5. Qb3 {[%clk 0:12:06]}  Nf6 {[%clk 0:11:44]} 6. Nf3 {[%clk 0:12:06]}  Bd7 {[%clk 0:11:28]}
7. Nbd2 {[%clk 0:12:04]}  Nc6 {[%clk 0:11:10]} 8. Qxb6 {[%clk 0:11:52]}  axb6 {[%clk 0:11:11]} 9. Bc7 {[%clk 0:11:53]}  cxd4 {[%clk 0:10:36]}
10. exd4 {[%clk 0:11:52]}  h6 {[%clk 0:10:08]} 11. Bxb6 {[%clk 0:11:43]}  Bd6 {[%clk 0:10:09]} 12. Nb3 {[%clk 0:11:30]}  O-O {[%clk 0:09:55]}
13. Bc5 {[%clk 0:11:32]}  Bxc5 {[%clk 0:09:49]} 14. Nxc5 {[%clk 0:11:33]}  b6 {[%clk 0:09:44]} 15. Nxd7 {[%clk 0:11:34]}  Nxd7 {[%clk 0:09:45]}
16. Bb5 {[%clk 0:11:35]}  Rfc8 {[%clk 0:09:42]} 17. Ke2 {[%clk 0:11:28]}  Nf6 {[%clk 0:09:42]} 18. Bxc6 {[%clk 0:11:29]}  Rxc6 {[%clk 0:09:43]}
19. Ne5 {[%clk 0:11:31]}  Rc7 {[%clk 0:09:45]} 20. f3 {[%clk 0:11:22]}  Kf8 {[%clk 0:09:46]} 21. g4 {[%clk 0:11:07]}  Ne8 {[%clk 0:09:47]}
22. h4 {[%clk 0:11:05]}  Nd6 {[%clk 0:09:49]} 23. Nd3 {[%clk 0:10:58]}  Nc4 {[%clk 0:09:46]} 24. a3 {[%clk 0:10:59]}  Nd6 {[%clk 0:09:42]}
25. Raf1 {[%clk 0:10:52]}  f6 {[%clk 0:09:31]} 26. Nf4 {[%clk 0:10:34]}  Kf7 {[%clk 0:09:30]} 27. g5 {[%clk 0:10:13]}  Rcc8 {[%clk 0:09:13]}
28. g6+ {[%clk 0:10:00]}  Ke7 {[%clk 0:09:06]} 29. Kd3 {[%clk 0:10:00]}  Kd7 {[%clk 0:09:00]} 30. Rh2 {[%clk 0:09:40]}  Nf5 {[%clk 0:08:58]}
31. h5 {[%clk 0:09:35]}  Rc6 {[%clk 0:08:55]} 32. Re1 {[%clk 0:09:34]}  Re8 {[%clk 0:08:54]} 33. Rhe2 {[%clk 0:09:32]}  Re7 {[%clk 0:08:55]}
34. a4 {[%clk 0:09:16]}  Ng3 {[%clk 0:08:40]} 35. Rg2 {[%clk 0:08:57]}  Nf5 {[%clk 0:08:39]} 36. b4 {[%clk 0:08:30]}  Nh4 {[%clk 0:08:00]}
37. Rf2 {[%clk 0:08:13]}  Rd6 {[%clk 0:07:49]} 38. Kc2 {[%clk 0:07:57]}  e5 {[%clk 0:07:40]} 39. dxe5 {[%clk 0:07:44]}  fxe5 {[%clk 0:07:21]}
40. Nd3 {[%clk 0:07:45]}  e4 {[%clk 0:06:44]} 41. fxe4 {[%clk 0:07:45]}  dxe4 {[%clk 0:06:34]} 42. Nb2 {[%clk 0:07:21]}  Nf3 {[%clk 0:06:10]}
43. Re3 {[%clk 0:07:20]}  Rf6 {[%clk 0:05:31]} 44. Rfe2 {[%clk 0:06:59]}  Rf4 {[%clk 0:05:08]} 45. Nc4 {[%clk 0:06:45]}  Re6 {[%clk 0:04:12]}
46. a5 {[%clk 0:06:21]}  bxa5 {[%clk 0:04:07]} 47. Nxa5 {[%clk 0:06:19]}  Re5 {[%clk 0:03:40]} 48. Nc4 {[%clk 0:06:15]}  Re6 {[%clk 0:03:16]}
49. Kb3 {[%clk 0:06:11]}  Kc6 {[%clk 0:02:55]} 50. Ka4 {[%clk 0:05:50]}  Rf5 {[%clk 0:02:31]} 51. Rxe4 {[%clk 0:05:30]}  Rxe4 {[%clk 0:02:24]}
52. Rxe4 {[%clk 0:05:31]}  Rxh5 {[%clk 0:02:25]} 53. Re7 {[%clk 0:05:23]}  Rg5 {[%clk 0:00:52]} 54. Rxg7 {[%clk 0:05:23]}  Nh4 {[%clk 0:00:51]}
55. Rh7 {[%clk 0:05:25]}  Nxg6 {[%clk 0:00:42]} 56. Rxh6 {[%clk 0:05:26]}  Kd5 {[%clk 0:00:37]} 57. Kb3 {[%clk 0:05:23]}  Ne5 {[%clk 0:00:30]} 1-0

[Event "7th Paul Keres Memorial Festival 2026 Rapid"]
[Site "ESTONIA Resort Hotel & Spa conference center, EE"]
[Date "2026.08.02"]
[Round "2"]
[White "Bondarenko, Dmitry"]
[Black "Mayorau, Mikita"]
[Result "0-1"]
[Board "8"]
[TimeControl "12+3"]
[WhiteFideId "34105708"]
[BlackFideId "13501720"]
[WhiteElo "1956"]
[BlackElo "2392"]
[BlackTitle "GM"]
[WhiteClock "0:05:58"]
[BlackClock "0:05:20"]
[Variant "Standard"]
[EndDate "2026.08.02"]
[EndTime "08:26:21"]

1. d4 {[%clk 0:12:04]}  Nf6 {[%clk 0:11:58]} 2. Nf3 {[%clk 0:12:06]}  g6 {[%clk 0:11:57]} 3. e3 {[%clk 0:12:07]}  Bg7 {[%clk 0:11:57]}
4. Be2 {[%clk 0:12:08]}  O-O {[%clk 0:11:52]} 5. O-O {[%clk 0:12:09]}  c5 {[%clk 0:11:42]} 6. c4 {[%clk 0:11:55]}  cxd4 {[%clk 0:11:41]}
7. exd4 {[%clk 0:11:56]}  d5 {[%clk 0:11:43]} 8. b3 {[%clk 0:11:50]}  Nc6 {[%clk 0:11:40]} 9. Bb2 {[%clk 0:11:46]}  b6 {[%clk 0:11:25]}
10. Nbd2 {[%clk 0:11:31]}  Bb7 {[%clk 0:11:25]} 11. Rc1 {[%clk 0:11:31]}  Nh5 {[%clk 0:10:03]} 12. g3 {[%clk 0:10:08]}  Rc8 {[%clk 0:09:19]}
13. c5 {[%clk 0:10:04]}  bxc5 {[%clk 0:09:18]} 14. Rxc5 {[%clk 0:10:02]}  Nf6 {[%clk 0:08:17]} 15. Bb5 {[%clk 0:09:28]}  Ne4 {[%clk 0:06:24]}
16. Rc2 {[%clk 0:08:03]}  Qa5 {[%clk 0:06:01]} 17. Bxc6 {[%clk 0:07:52]}  Bxc6 {[%clk 0:05:38]} 18. Qa1 {[%clk 0:07:44]}  Bb5 {[%clk 0:05:22]}
19. Rfc1 {[%clk 0:07:44]}  Rxc2 {[%clk 0:05:22]} 20. Rxc2 {[%clk 0:07:46]}  Bd3 {[%clk 0:05:24]} 21. Rc6 {[%clk 0:07:30]}  Nxd2 {[%clk 0:05:20]}
22. Nxd2 {[%clk 0:06:44]}  Qxd2 {[%clk 0:05:21]} 23. Bc1 {[%clk 0:05:58]}  Qd1+ {[%clk 0:05:20]} 0-1

[Event "7th Paul Keres Memorial Festival 2026 Rapid"]
[Site "ESTONIA Resort Hotel & Spa conference center, EE"]
[Date "2026.08.02"]
[Round "2"]
[White "Jakubowski, Krzysztof"]
[Black "Kais, Kristofer"]
[Result "1-0"]
[Board "9"]
[TimeControl "12+3"]
[WhiteFideId "1112848"]
[BlackFideId "4518241"]
[WhiteElo "2365"]
[BlackElo "1894"]
[WhiteTitle "GM"]
[WhiteClock "0:01:13"]
[BlackClock "0:00:07"]
[Variant "Standard"]
[EndDate "2026.08.02"]
[EndTime "08:36:31"]

1. c4 {[%clk 0:12:01]}  e5 {[%clk 0:12:03]} 2. e3 {[%clk 0:12:02]}  Nf6 {[%clk 0:11:46]} 3. Nc3 {[%clk 0:12:02]}  c6 {[%clk 0:11:43]}
4. Nf3 {[%clk 0:11:06]}  e4 {[%clk 0:11:32]} 5. Nd4 {[%clk 0:11:07]}  d5 {[%clk 0:11:33]} 6. cxd5 {[%clk 0:11:08]}  cxd5 {[%clk 0:11:34]}
7. d3 {[%clk 0:11:07]}  Nc6 {[%clk 0:10:28]} 8. Nxc6 {[%clk 0:10:57]}  bxc6 {[%clk 0:10:29]} 9. dxe4 {[%clk 0:10:58]}  dxe4 {[%clk 0:09:50]}
10. Qxd8+ {[%clk 0:10:50]}  Kxd8 {[%clk 0:09:51]} 11. Bc4 {[%clk 0:10:50]}  Ke7 {[%clk 0:09:08]} 12. b3 {[%clk 0:10:22]}  a5 {[%clk 0:07:13]}
13. Na4 {[%clk 0:06:44]}  Nd5 {[%clk 0:06:56]} 14. Bb2 {[%clk 0:06:11]}  f5 {[%clk 0:06:11]} 15. Bxd5 {[%clk 0:03:42]}  cxd5 {[%clk 0:06:12]}
16. Rc1 {[%clk 0:03:27]}  Be6 {[%clk 0:05:07]} 17. Kd2 {[%clk 0:02:10]}  Kd8 {[%clk 0:04:21]} 18. g3 {[%clk 0:02:11]}  Bb4+ {[%clk 0:04:20]}
19. Bc3 {[%clk 0:02:13]}  Ke7 {[%clk 0:03:33]} 20. Bxb4+ {[%clk 0:01:54]}  axb4 {[%clk 0:03:33]} 21. Rc7+ {[%clk 0:01:54]}  Kf6 {[%clk 0:03:11]}
22. Rhc1 {[%clk 0:01:55]}  Rab8 {[%clk 0:02:31]} 23. R1c6 {[%clk 0:01:13]}  Rhc8 {[%clk 0:02:04]} 24. Nc5 {[%clk 0:01:15]}  Rxc7 {[%clk 0:01:38]}
25. Rxc7 {[%clk 0:01:17]}  Rb6 {[%clk 0:00:57]} 26. Ra7 {[%clk 0:01:18]}  Rc6 {[%clk 0:00:49]} 27. Na6 {[%clk 0:01:17]}  Rb6 {[%clk 0:00:38]}
28. Nc7 {[%clk 0:01:16]}  Bf7 {[%clk 0:00:17]} 29. Ra6 {[%clk 0:01:12]}  Rxa6 {[%clk 0:00:08]} 30. Nxa6 {[%clk 0:01:14]}  g5 {[%clk 0:00:06]}
31. Nxb4 {[%clk 0:01:14]}  Ke5 {[%clk 0:00:07]} 32. a4 {[%clk 0:01:12]}  f4 {[%clk 0:00:04]} 33. gxf4+ {[%clk 0:01:07]}  gxf4 {[%clk 0:00:05]}
34. Nc6+ {[%clk 0:01:08]}  Kf5 {[%clk 0:00:04]} 35. a5 {[%clk 0:01:08]}  f3 {[%clk 0:00:04]} 36. a6 {[%clk 0:01:09]}  Be8 {[%clk 0:00:06]}
37. Nd4+ {[%clk 0:01:11]}  Kg4 {[%clk 0:00:07]} 38. a7 {[%clk 0:01:13]} 1-0

[Event "7th Paul Keres Memorial Festival 2026 Rapid"]
[Site "ESTONIA Resort Hotel & Spa conference center, EE"]
[Date "2026.08.02"]
[Round "3"]
[White "Krustkalns, Kristaps"]
[Black "Shirov, Alexei"]
[Result "0-1"]
[Board "1"]
[TimeControl "12+3"]
[WhiteFideId "11602686"]
[BlackFideId "2209390"]
[WhiteElo "1967"]
[BlackElo "2616"]
[WhiteTitle "FM"]
[BlackTitle "GM"]
[WhiteClock "0:00:11"]
[BlackClock "0:00:11"]
[Variant "Standard"]
[EndDate "2026.08.02"]
[EndTime "09:14:30"]

1. e4 {[%clk 0:12:03]}  c5 {[%clk 0:12:05]} 2. Nf3 {[%clk 0:12:04]}  e6 {[%clk 0:12:06]} 3. d4 {[%clk 0:12:05]}  cxd4 {[%clk 0:12:07]}
4. Nxd4 {[%clk 0:12:06]}  Nc6 {[%clk 0:12:08]} 5. Nc3 {[%clk 0:12:06]}  a6 {[%clk 0:12:10]} 6. f4 {[%clk 0:11:54]}  Nxd4 {[%clk 0:12:06]}
7. Qxd4 {[%clk 0:11:53]}  b5 {[%clk 0:12:07]} 8. a3 {[%clk 0:11:42]}  Bb7 {[%clk 0:12:00]} 9. Be3 {[%clk 0:11:03]}  Rc8 {[%clk 0:10:55]}
10. Qa7 {[%clk 0:10:07]}  Qc7 {[%clk 0:10:24]} 11. Bd3 {[%clk 0:09:01]}  Nf6 {[%clk 0:07:33]} 12. O-O {[%clk 0:05:57]}  Ng4 {[%clk 0:07:06]}
13. Bd4 {[%clk 0:05:22]}  e5 {[%clk 0:06:18]} 14. fxe5 {[%clk 0:04:58]}  Bc5 {[%clk 0:05:16]} 15. Qxc5 {[%clk 0:03:57]}  Qxc5 {[%clk 0:05:16]}
16. Bxc5 {[%clk 0:03:58]}  Rxc5 {[%clk 0:05:17]} 17. a4 {[%clk 0:03:57]}  b4 {[%clk 0:04:10]} 18. Nd5 {[%clk 0:03:58]}  a5 {[%clk 0:02:16]}
19. Rf5 {[%clk 0:02:43]}  Bxd5 {[%clk 0:02:04]} 20. exd5 {[%clk 0:02:45]}  Rxd5 {[%clk 0:01:16]} 21. Bc4 {[%clk 0:01:56]}  Rxe5 {[%clk 0:01:16]}
22. Bxf7+ {[%clk 0:01:50]}  Ke7 {[%clk 0:01:18]} 23. Rxe5+ {[%clk 0:01:41]}  Nxe5 {[%clk 0:01:19]} 24. Bd5 {[%clk 0:01:42]}  Rc8 {[%clk 0:01:18]}
25. Re1 {[%clk 0:01:32]}  Kd6 {[%clk 0:00:19]} 26. Rd1 {[%clk 0:01:32]}  Kc7 {[%clk 0:00:16]} 27. Be4 {[%clk 0:01:21]}  h6 {[%clk 0:00:13]}
28. Rd5 {[%clk 0:01:10]}  Re8 {[%clk 0:00:09]} 29. Rxa5 {[%clk 0:01:06]}  Ng4 {[%clk 0:00:10]} 30. h3 {[%clk 0:00:54]}  Rxe4 {[%clk 0:00:11]}
31. hxg4 {[%clk 0:00:55]}  Rxg4 {[%clk 0:00:08]} 32. Rf5 {[%clk 0:00:29]}  Rc4 {[%clk 0:00:09]} 33. b3 {[%clk 0:00:23]}  Rxc2 {[%clk 0:00:10]}
34. Rf4 {[%clk 0:00:24]}  d5 {[%clk 0:00:08]} 35. Rxb4 {[%clk 0:00:26]}  Kc6 {[%clk 0:00:08]} 36. Rb8 {[%clk 0:00:25]}  Ra2 {[%clk 0:00:09]}
37. Rg8 {[%clk 0:00:21]}  d4 {[%clk 0:00:05]} 38. Kf1 {[%clk 0:00:22]}  d3 {[%clk 0:00:06]} 39. Rxg7 {[%clk 0:00:24]}  Ra1+ {[%clk 0:00:08]}
40. Kf2 {[%clk 0:00:25]}  d2 {[%clk 0:00:10]} 41. Rg6+ {[%clk 0:00:14]}  Kc5 {[%clk 0:00:10]} 42. b4+ {[%clk 0:00:11]}  Kxb4 {[%clk 0:00:11]} 0-1

[Event "7th Paul Keres Memorial Festival 2026 Rapid"]
[Site "ESTONIA Resort Hotel & Spa conference center, EE"]
[Date "2026.08.02"]
[Round "3"]
[White "Lagarde, Maxime"]
[Black "Platonovs, Nikolajs"]
[Result "1/2-1/2"]
[Board "2"]
[TimeControl "12+3"]
[WhiteFideId "662399"]
[BlackFideId "11622598"]
[WhiteElo "2599"]
[BlackElo "2188"]
[WhiteTitle "GM"]
[BlackTitle "CM"]
[WhiteClock "0:00:26"]
[BlackClock "0:00:16"]
[Variant "Standard"]
[EndDate "2026.08.02"]
[EndTime "09:15:35"]

1. e4 {[%clk 0:12:05]}  c5 {[%clk 0:12:06]} 2. Nf3 {[%clk 0:12:07]}  d6 {[%clk 0:12:08]} 3. Bc4 {[%clk 0:12:08]}  Nf6 {[%clk 0:12:08]}
4. d3 {[%clk 0:12:07]}  Nc6 {[%clk 0:12:02]} 5. O-O {[%clk 0:12:06]}  g6 {[%clk 0:11:59]} 6. Re1 {[%clk 0:12:04]}  Bg7 {[%clk 0:12:00]}
7. c3 {[%clk 0:12:05]}  O-O {[%clk 0:11:48]} 8. a4 {[%clk 0:12:07]}  Qc7 {[%clk 0:11:41]} 9. Nbd2 {[%clk 0:11:32]}  Nd7 {[%clk 0:10:54]}
10. Bb3 {[%clk 0:11:10]}  Nde5 {[%clk 0:10:35]} 11. Nxe5 {[%clk 0:10:21]}  Bxe5 {[%clk 0:09:43]} 12. Nf1 {[%clk 0:09:41]}  Bd7 {[%clk 0:07:48]}
13. Bh6 {[%clk 0:08:53]}  Bg7 {[%clk 0:07:41]} 14. Qd2 {[%clk 0:08:34]}  a6 {[%clk 0:07:07]} 15. Bxg7 {[%clk 0:07:54]}  Kxg7 {[%clk 0:07:09]}
16. Ne3 {[%clk 0:07:55]}  b5 {[%clk 0:06:42]} 17. h4 {[%clk 0:07:55]}  h5 {[%clk 0:05:30]} 18. Nd5 {[%clk 0:07:34]}  Qd8 {[%clk 0:05:16]}
19. axb5 {[%clk 0:06:41]}  axb5 {[%clk 0:05:18]} 20. Rxa8 {[%clk 0:06:43]}  Qxa8 {[%clk 0:05:20]} 21. Qg5 {[%clk 0:06:43]}  Qd8 {[%clk 0:03:14]}
22. Nf4 {[%clk 0:06:42]}  Bg4 {[%clk 0:03:11]} 23. Bxf7 {[%clk 0:04:12]}  Rxf7 {[%clk 0:03:04]} 24. Qxg6+ {[%clk 0:04:13]}  Kf8 {[%clk 0:03:05]}
25. Nxh5 {[%clk 0:03:40]}  Bxh5 {[%clk 0:02:56]} 26. Qxh5 {[%clk 0:03:42]}  e6 {[%clk 0:01:45]} 27. Qh6+ {[%clk 0:03:17]}  Ke7 {[%clk 0:01:38]}
28. d4 {[%clk 0:02:37]}  cxd4 {[%clk 0:01:22]} 29. Qg5+ {[%clk 0:02:38]}  Kd7 {[%clk 0:01:19]} 30. Qxb5 {[%clk 0:02:32]}  Qb8 {[%clk 0:00:47]}
31. Qxb8 {[%clk 0:02:05]}  Nxb8 {[%clk 0:00:50]} 32. cxd4 {[%clk 0:02:02]}  Nc6 {[%clk 0:00:45]} 33. Rd1 {[%clk 0:01:59]}  Rf4 {[%clk 0:00:42]}
34. f3 {[%clk 0:02:01]}  Rxh4 {[%clk 0:00:41]} 35. g4 {[%clk 0:02:03]}  Ke7 {[%clk 0:00:38]} 36. Kg2 {[%clk 0:02:02]}  Rh8 {[%clk 0:00:40]}
37. Kg3 {[%clk 0:02:02]}  Rb8 {[%clk 0:00:42]} 38. Rd2 {[%clk 0:01:56]}  Rb3 {[%clk 0:00:38]} 39. g5 {[%clk 0:01:53]}  e5 {[%clk 0:00:31]}
40. dxe5 {[%clk 0:01:48]}  Nxe5 {[%clk 0:00:31]} 41. Rf2 {[%clk 0:01:50]}  Nd3 {[%clk 0:00:31]} 42. Rf1 {[%clk 0:01:47]}  Rxb2 {[%clk 0:00:30]}
43. f4 {[%clk 0:01:27]}  Nc5 {[%clk 0:00:24]} 44. Re1 {[%clk 0:01:22]}  Rb4 {[%clk 0:00:23]} 45. Kf3 {[%clk 0:01:19]}  Ke6 {[%clk 0:00:19]}
46. Re3 {[%clk 0:01:04]}  Rb1 {[%clk 0:00:16]} 47. Kg4 {[%clk 0:00:53]}  Rb3 {[%clk 0:00:06]} 48. Re2 {[%clk 0:00:38]}  Rb4 {[%clk 0:00:09]}
49. e5 {[%clk 0:00:29]}  Re4 {[%clk 0:00:09]} 50. Rxe4 {[%clk 0:00:19]}  Nxe4 {[%clk 0:00:11]} 51. exd6 {[%clk 0:00:21]}  Nxd6 {[%clk 0:00:12]}
52. Kh5 {[%clk 0:00:20]}  Kf7 {[%clk 0:00:08]} 53. Kh6 {[%clk 0:00:21]}  Nf5+ {[%clk 0:00:09]} 54. Kh7 {[%clk 0:00:23]}  Ng7 {[%clk 0:00:09]}
55. g6+ {[%clk 0:00:23]}  Kf6 {[%clk 0:00:12]} 56. Kh6 {[%clk 0:00:24]}  Nf5 {[%clk 0:00:14]} 57. Kh5 {[%clk 0:00:26]}  Ng7+ {[%clk 0:00:16]} 1/2-1/2

[Event "7th Paul Keres Memorial Festival 2026 Rapid"]
[Site "ESTONIA Resort Hotel & Spa conference center, EE"]
[Date "2026.08.02"]
[Round "3"]
[White "Povilaitis, Tomas"]
[Black "Fridman, Daniel"]
[Result "1/2-1/2"]
[Board "3"]
[TimeControl "12+3"]
[WhiteFideId "12811700"]
[BlackFideId "11600454"]
[WhiteElo "2154"]
[BlackElo "2555"]
[BlackTitle "GM"]
[WhiteClock "0:01:00"]
[BlackClock "0:03:35"]
[Variant "Standard"]
[EndDate "2026.08.02"]
[EndTime "09:09:40"]

1. e4 {[%clk 0:12:03]}  c6 {[%clk 0:12:03]} 2. c4 {[%clk 0:12:03]}  d5 {[%clk 0:12:03]} 3. exd5 {[%clk 0:12:04]}  cxd5 {[%clk 0:12:04]}
4. cxd5 {[%clk 0:12:06]}  Nf6 {[%clk 0:12:05]} 5. Qa4+ {[%clk 0:12:08]}  Nbd7 {[%clk 0:12:04]} 6. Nc3 {[%clk 0:12:09]}  g6 {[%clk 0:12:04]}
7. Nf3 {[%clk 0:12:11]}  Bg7 {[%clk 0:12:05]} 8. Bc4 {[%clk 0:12:12]}  O-O {[%clk 0:12:05]} 9. d3 {[%clk 0:12:14]}  a6 {[%clk 0:11:54]}
10. Qa3 {[%clk 0:12:16]}  Qc7 {[%clk 0:11:20]} 11. O-O {[%clk 0:12:04]}  Nb6 {[%clk 0:11:21]} 12. Qb3 {[%clk 0:12:03]}  Bg4 {[%clk 0:11:21]}
13. Ng5 {[%clk 0:10:17]}  h6 {[%clk 0:09:18]} 14. d6 {[%clk 0:07:44]}  exd6 {[%clk 0:09:19]} 15. Nxf7 {[%clk 0:07:43]}  Nxc4 {[%clk 0:09:17]}
16. Nxh6+ {[%clk 0:07:45]}  Kh7 {[%clk 0:06:30]} 17. Nxg4 {[%clk 0:07:46]}  Nxg4 {[%clk 0:06:31]} 18. Qxc4 {[%clk 0:07:48]}  Qxc4 {[%clk 0:06:32]}
19. dxc4 {[%clk 0:07:49]}  Rae8 {[%clk 0:04:54]} 20. Be3 {[%clk 0:07:04]}  Bxc3 {[%clk 0:04:25]} 21. bxc3 {[%clk 0:07:06]}  Nxe3 {[%clk 0:04:23]}
22. fxe3 {[%clk 0:07:07]}  Rxf1+ {[%clk 0:04:24]} 23. Rxf1 {[%clk 0:07:08]}  Rxe3 {[%clk 0:04:25]} 24. Rf7+ {[%clk 0:06:55]}  Kh6 {[%clk 0:04:26]}
25. Rxb7 {[%clk 0:06:56]}  Rxc3 {[%clk 0:04:27]} 26. Rb6 {[%clk 0:06:41]}  Rc1+ {[%clk 0:04:13]} 27. Kf2 {[%clk 0:06:43]}  Rc2+ {[%clk 0:04:15]}
28. Kf3 {[%clk 0:05:31]}  Rxa2 {[%clk 0:04:16]} 29. Rxd6 {[%clk 0:05:29]}  Rc2 {[%clk 0:04:17]} 30. Rc6 {[%clk 0:04:40]}  a5 {[%clk 0:04:17]}
31. h4 {[%clk 0:04:30]}  Kh5 {[%clk 0:03:52]} 32. g3 {[%clk 0:01:21]}  a4 {[%clk 0:03:48]} 33. Rc8 {[%clk 0:01:22]}  Kh6 {[%clk 0:03:48]}
34. c5 {[%clk 0:01:09]}  a3 {[%clk 0:03:48]} 35. Ra8 {[%clk 0:01:10]}  Rxc5 {[%clk 0:03:39]} 36. Rxa3 {[%clk 0:01:12]}  Rc6 {[%clk 0:03:39]}
37. Re3 {[%clk 0:01:13]}  g5 {[%clk 0:03:35]} 38. Ke4 {[%clk 0:01:00]} 1/2-1/2